Cogmind - Beta 17 @@@ ROGUE MODE // 2026.08.19 @ 15:11:06 Player: TheSkyeDoctor Result: Destroyed by G-67 Veteran with Plasma Rifle Performance ------------- Evolutions (3) 1500 Regions Visited (9) 1800 Robots Destroyed (86) 430 Value Destroyed (3607) 3607 Prototype IDs (12) 240 Alien Tech Used (0) 0 Bonus (1900) 1900 TOTAL SCORE: 9477 Bonus ------- High Alert Combat Kills 814 Follower Combat Kills 286 Entered Garrisons 200 Met Data Miner 300 Acquired ECA 300 Cogmind --------- Core Integrity 0/700 Matter 300/300 Energy 488/490 System Corruption 0% Temperature Warm (156) Movement Treading (360) Ox5 Location -6/Proximity Caves Parts ------- > --- POWER (1) -------- Reinforced Deuterium Engine > --- PROPULSION (4) --- Light Treads > --- UTILITY (4) ------ Improved Cooling System Huge Storage Unit Compact Battery Improved Signal Interpreter > --- WEAPON (4) ------- Field Laser > --- INVENTORY (25) --- Deuterium Engine Deuterium Engine Structural Scanner Improved Terrain Scanner Terrain Scan Processor Improved Medium Armor Plating Makeshift Light Armor Plating Makeshift Light Armor Plating Improved Shield Generator Hacking Suite Missile Launcher Datajack Remote Datajack Katana Peak State ------------ > --- POWER ------------ Heavy Ion Engine > --- PROPULSION ------- Light Treads Armored Treads Medium Treads > --- UTILITY ---------- Improved Heat Sink Huge Storage Unit Improved Signal Interpreter Encrypted Comm Array > --- WEAPON ----------- Plasma Cannon Light Assault Rifle Enhanced Autogun Advanced Assault Cannon > --- INVENTORY -------- Deuterium Engine Deuterium Engine Neutrino Core Improved Cooling System Compact Battery Structural Scanner Improved Terrain Scanner Terrain Scan Processor Makeshift Light Armor Plating Makeshift Light Armor Plating Improved Shield Generator Hacking Suite Heavy Riot Gun Heavy Riot Gun Heavy Riot Gun Heavy Battle Rifle Heavy Battle Rifle Proton Missile Launcher Missile Launcher Datajack Remote Datajack [Rating: 43] Favorites ----------- Power Heavy Ion Engine Engine Heavy Ion Engine Power Core Neutrino Core Propulsion Light Treads Treads Light Treads Leg Aluminum Leg Wheel Armored Wheel Utility Huge Storage Unit Device Encrypted Comm Array Storage Huge Storage Unit Processor Improved Signal Interpreter Hackware Hacking Suite Protection Improved Light Armor Plating Weapon Light Assault Rifle Energy Gun Medium Laser Energy Cannon Plasma Cannon Ballistic Gun Light Assault Rifle Ballistic Cannon Advanced Assault Cannon Launcher Grenade Launcher Impact Weapon Heavy Flail Slashing Weapon Katana Special Melee Weapon Datajack Build | -11 -10 -9 -8 -8 -8 -7 -7 -7 -6 ------- Run | Yrd Mat Mat Mat Gar Mat Fac Low Dat Pro Slots Evolved 6 | . . 2 2 . . 2 . . . Power . | . . . . . . . . . . Propulsion 2 | . . 1 . . . 1 . . . Utility 2 | . . 1 . . . 1 . . . Weapon 2 | . . . 2 . . . . . . Parts Attached 72 | 8 2 5 3 22 6 5 3 . 18 Power 9 | 1 . 1 . 3 1 . . . 3 Engine 8 | 1 . 1 . 3 1 . . . 2 Core 1 | . . . . . . . . . 1 Reactor . | . . . . . . . . . . Propulsion 22 | 3 . 2 . 8 2 2 1 . 4 Treads 11 | 1 . . . 3 2 2 1 . 2 Leg 7 | . . . . 5 . . . . 2 Wheel 4 | 2 . 2 . . . . . . . Hover . | . . . . . . . . . . Flight . | . . . . . . . . . . Utility 14 | 2 2 1 1 2 1 2 1 . 2 Device 5 | 1 1 . . . . 1 1 . 1 Storage 4 | 1 1 . 1 . . . . . 1 Processor 2 | . . 1 . . . 1 . . . Hackware 1 | . . . . 1 . . . . . Protection 2 | . . . . 1 1 . . . . Artifact . | . . . . . . . . . . Weapon 27 | 2 . 1 2 9 2 1 1 . 9 Energy Gun 7 | 1 . 1 . . . . . . 5 Energy Cannon 1 | . . . . . . 1 . . . Ballistic Gun 10 | 1 . . 1 4 2 . . . 2 Ballistic Cannon 2 | . . . 1 . . . 1 . . Launcher 3 | . . . . 2 . . . . 1 Special Weapon . | . . . . . . . . . . Impact Weapon 2 | . . . . 2 . . . . . Slashing Weapon 1 | . . . . . . . . . 1 Piercing Weapon . | . . . . . . . . . . Special Melee Weapon 1 | . . . . 1 . . . . . Unidentified Prototypes 2 | . . . 1 . 1 . . . . Parts Lost 43 | . . . . 13 6 4 2 . 18 Power 5 | . . . . 3 . . . . 2 Propulsion 17 | . . . . 5 3 1 2 . 6 Utility 3 | . . . . . 1 1 . . 1 Weapon 18 | . . . . 5 2 2 . . 9 Highest Loss Streak 7 | . . . . 6 3 3 2 . 7 To Critical Strikes 1 | . . . . 1 . . . . . Average Backups 12 | 2 4 4 9 11 12 13 19 21 18 Power 1 | . 1 1 1 . . 2 2 3 2 Propulsion . | 1 2 1 1 . . . . . . Utility 5 | . 1 1 3 5 5 5 8 9 9 Weapon 3 | . . 1 2 3 3 3 6 7 4 Tool/Special . | . . . . . . . . . . Unused Backups 17 | . . . 3 . . 4 . . 10 Power 5 | . . . 1 . . 3 . . 1 Propulsion . | . . . . . . . . . . Utility 7 | . . . . . . . . . 7 Weapon 4 | . . . 2 . . 1 . . 1 Tool/Special 1 | . . . . . . . . . 1 Average Slot Usage (%) 81 | . 100 99 99 73 85 91 92 92 76 Engine 6 | . 14 11 9 4 9 7 7 7 4 Treads 10 | . 14 11 9 4 7 29 23 23 8 Leg 7 | . . . . 10 14 . . . 7 Wheel 3 | . 14 22 18 3 . . . . . Device 4 | . 14 11 9 . . 2 15 15 11 Storage 8 | . 14 11 9 9 9 7 7 7 10 Processor 4 | . . 10 9 2 . 6 7 7 7 Hackware 1 | . . . . 2 . . . . . Protection 4 | . . . . 5 8 4 . . . Energy Gun 3 | . 14 11 9 2 . . . . 7 Energy Cannon 1 | . . . . . . 1 7 7 1 Ballistic Gun 14 | . 14 11 17 12 24 20 15 15 8 Ballistic Cannon 2 | . . . 9 1 . . 5 7 3 Launcher 2 | . . . . 5 2 . . . . Impact Weapon 6 | . . . . 8 9 7 1 . . Peak Build Rating 43 | 7 7 10 19 25 26 33 43 43 43 Average Rating 22 | 5 6 9 17 16 20 30 40 43 35 On Entrance 20 | . 7 7 10 19 17 26 33 43 43 Avg Prop Armor Cover (%) 10 | 15 13 12 8 10 . . . . 10 Naked Turns . | . . . . . . . . . . Heaviest Build 113 | 12 27 29 96 99 113 113 107 106 107 Greatest Support 80 | 20 10 22 22 30 60 80 80 68 68 Greatest Overweight (x) 32 | 1 2 1 4 29 11 1 2 1 32 Average Overweight (x) 3 | . 1 1 2 6 2 1 1 1 3 Largest Inventory Capacity 25 | 8 15 15 25 25 25 25 25 25 25 Average Capacity 23 | 7 8 15 19 25 25 25 25 25 25 Most Carried 23 | 4 6 5 14 18 14 15 21 21 23 Average Carried 13 | 2 5 4 10 12 12 13 19 21 17 Final Capacity 25 | 8 15 15 25 25 25 25 25 25 25 Final Carried 21 | 4 6 5 14 13 14 13 21 21 14 Class Distribution -------------------- 34% | Scavenger-Tank 30% | Gunner 25% | Mutant 3% | Scavenger-Gunner 3% | Scavenger-Skirmisher Dominant Class ---------------- Mutant | -10/Materials Mutant | -9/Materials Gunner | -8/Materials Scavenger-Tank | -8/Garrison Scavenger-Tank | -8/Materials Scavenger-Tank | -7/Factory Gunner | -7/Lower Caves Gunner | -7/Data Miner Gunner | -6/Proximity Caves Resources | -11 -10 -9 -8 -8 -8 -7 -7 -7 -6 ----------- Run | Yrd Mat Mat Mat Gar Mat Fac Low Dat Pro Matter Collected 2511 | 296 13 69 126 786 532 217 136 . 336 Remotely . | . . . . . . . . . . Salvage Created 2561 | 163 46 99 203 740 475 260 94 . 481 Parts 135 | 15 . 7 13 44 28 18 2 . 8 Haulers Intercepted 4 | . . . 2 . 2 . . . . Recyclers Shooed 1 | . . . . . 1 . . . . Parts Field Recycled . | . . . . . . . . . . Retrieved Matter . | . . . . . . . . . . Parts Self-Destructed 16 | . . . . . . . 2 . 14 Prevented 4 | . . . . . . . . . 4 Parts Restored . | . . . . . . . . . . Kills | -11 -10 -9 -8 -8 -8 -7 -7 -7 -6 ------- Run | Yrd Mat Mat Mat Gar Mat Fac Low Dat Pro Combat Hostiles Destroyed 71 | . 3 4 4 38 7 6 1 . 8 Melee 5 | . . . . 4 . . . . 1 Guns 44 | . 3 4 4 16 6 5 . . 6 Cannons 5 | . . . . 4 . 1 . . . AOE 8 | . . . . 6 1 . . . 1 Classes Destroyed 16 | 2 1 1 3 3 3 1 1 . 1 Worker 1 | . . . . . . 1 . . . Tunneler 5 | 5 . . . . . . . . . Hauler 4 | . . . 2 . 2 . . . . Recycler 1 | 1 . . . . . . . . . Operator 2 | . . . . . 1 1 . . . Watcher 2 | . . . 1 . 1 . . . . Swarmer 31 | . 3 2 3 19 . 3 . . 1 Saboteur 2 | . . . . 2 . . . . . Grunt 22 | . . 2 . 11 4 1 . . 4 Brawler 1 | . . . . . 1 . . . . Duelist 2 | . . . . . . . . . 2 Protector 1 | . . . . . 1 . . . . Sentry 5 | . . . 1 3 . . . . 1 Hunter 2 | . . . . . 1 1 . . . Programmer 3 | . . . . 2 . 1 . . . Behemoth 1 | . . . . . . . 1 . . Savage 1 | . . . . 1 . . . . . Best Kill Streak 5 | 4 3 1 3 5 2 3 1 . 5 Combat Bots Only 5 | . 3 1 2 5 2 3 1 . 5 Max Kills in Single Turn 2 | 1 1 1 1 2 1 1 1 . 2 Gunslinging 1 | . . . . 1 . . . . . Exploded 1 | . . . . 1 1 . . . 1 Melee 1 | . . . . 1 . . . . 1 Uniques/NPCs Destroyed . | . . . . . . . . . . Combat | -11 -10 -9 -8 -8 -8 -7 -7 -7 -6 -------- Run | Yrd Mat Mat Mat Gar Mat Fac Low Dat Pro Hostile Shots Fired 474 | . 20 14 17 161 48 57 15 . 142 Missed 125 | . 5 2 8 46 11 14 5 . 34 Hits 349 | . 15 12 9 115 37 43 10 . 108 Melee 31 | . . . . 4 8 . . . 19 Projectile 318 | . 15 12 9 111 29 43 10 . 89 AOE 1 | . . . . 1 . . . . . Critical Strikes 16 | . . . . 4 4 . . . 8 Part Disruptions 1 | . . . . 1 . . . . . Damage Taken 6324 | . 108 110 82 1740 812 629 207 . 2636 Core 1194 | . 9 10 15 364 93 78 23 . 602 Absorbed by Shields 25 | . . . . 25 . . . . . Core Remaining (%) 76 | 100 96 97 . . 14 . . . . Volleys Fired 233 | 16 13 15 11 83 38 26 4 . 27 Largest 4 | 2 2 2 4 3 3 3 4 . 4 Hottest 192 | 70 70 70 128 108 70 125 165 . 192 Shots Fired 603 | 32 26 29 44 200 110 73 14 . 75 Gun 511 | 32 26 29 33 159 105 66 8 . 53 Cannon 60 | . . . 11 17 . 7 6 . 19 Launcher 32 | . . . . 24 5 . . . 3 Special . | . . . . . . . . . . Kinetic 448 | 16 13 15 33 142 105 66 10 . 48 Thermal 112 | 16 13 14 11 34 . 7 4 . 13 Explosive 29 | . . . . 24 5 . . . . Electromagnetic 14 | . . . . . . . . . 14 Robot Hit Streak 12 | 7 5 4 6 10 12 12 3 . 6 Robot Miss Streak 8 | 3 2 3 3 5 8 4 2 . 6 Penetration Max . | . . . . . . . . . . Secondary Targets 8 | . . . . 7 1 . . . . Max Gunslinging Chain 1 | . . . . 1 1 . . . . Shots Hit Robots 358 | 18 16 11 22 119 62 48 7 . 55 Core Hits 158 | 8 3 6 9 56 31 14 2 . 29 Critical Kills 3 | . . . . . 2 . 1 . . Critical Parts Destroyed 2 | . . . . 2 . . . . . Critical Strikes 17 | 2 2 . 1 7 2 . 1 . 2 Burn 8 | 2 2 . . 4 . . . . . Meltdown 1 | . . . . . . . 1 . . Destroy 4 | . . . . 2 2 . . . . Blast 2 | . . . 1 1 . . . . . Sever 2 | . . . . . . . . . 2 Melee Attacks 66 | . . . . 54 . 1 . . 11 Impact 51 | . . . . 50 . 1 . . . Slashing 9 | . . . . . . . . . 9 Piercing . | . . . . . . . . . . Sneak Attacks 6 | . . . . 3 . 1 . . 2 Combat Hostiles . | . . . . . . . . . . Follow-up Attacks . | . . . . . . . . . . Damage Inflicted 7099 | 187 171 112 327 2813 952 681 174 . 1682 Guns 3874 | 187 171 112 241 1149 759 534 63 . 658 Cannons 784 | . . . 86 142 . 78 111 . 367 Explosions 1546 | . . . . 893 193 . . . 460 Melee 895 | . . . . 629 . 69 . . 197 Ramming . | . . . . . . . . . . Kinetic 3577 | 63 60 49 251 1021 759 534 92 . 748 Thermal 1167 | 124 111 63 76 270 . 78 82 . 363 Explosive 1086 | . . . . 893 193 . . . . Electromagnetic 374 | . . . . . . . . . 374 Impact 698 | . . . . 629 . 69 . . . Slashing 197 | . . . . . . . . . 197 Piercing . | . . . . . . . . . . Highest Corruption 6 | . . . . 4 6 . . . . Average Corruption 4 | . . . . 3 4 . . . . Corruption Purged . | . . . . . . . . . . Corruption Blocked . | . . . . . . . . . . Effects 84 | . . . . 66 18 . . . . Message Errors 18 | . . . . 14 4 . . . . Matter Fused 17 | . . . . 12 5 . . . . Heat Flow Errors 8 | . . . . 7 1 . . . . Energy Discharges 13 | . . . . 10 3 . . . . Parts Rejected 1 | . . . . 1 . . . . . Parts Fused 4 | . . . . 2 2 . . . . Data Loss (minor) 8 | . . . . 8 . . . . . Data Loss (major) 3 | . . . . 3 . . . . . Misfires 3 | . . . . 3 . . . . . Alerts 2 | . . . . 2 . . . . . Weapon Failures 7 | . . . . 4 3 . . . . Overload Shots . | . . . . . . . . . . Overflow Damage 265 | . . . . 223 . 29 . . 13 Projectiles 13 | . . . . . . . . . 13 Explosions 8 | . . . . 8 . . . . . Melee 244 | . . . . 215 . 29 . . . Knockbacks 6 | . . . 1 2 . . . . 3 Impact . | . . . . . . . . . . Kinetic 6 | . . . 1 2 . . . . 3 Secondary . | . . . . . . . . . . Self-Inflicted Damage 373 | . . . . 195 97 . . . 81 Shots 19 | . . . . 13 5 . . . 1 Rammed . | . . . . . . . . . . Targets Rammed . | . . . . . . . . . . Kicked . | . . . . . . . . . . Crushed . | . . . . . . . . . . Highest Temperature 508 | 130 190 68 285 265 218 224 130 . 508 Average Temperature 73 | 58 99 27 121 73 48 60 53 . 133 Received Heat Transfer 1523 | . . 36 9 466 279 54 36 . 643 Effects 8 | . . . 2 . . . . . 6 Interference 2 | . . . 2 . . . . . . Damage (major) 6 | . . . . . . . . . 6 Siege Activations . | . . . . . . . . . . Martial Activations . | . . . . . . . . . . Shielding Activations . | . . . . . . . . . . Robots Disrupted . | . . . . . . . . . . Combat Hostiles . | . . . . . . . . . . Robots Corrupted 9 | . . . . 8 . 1 . . . Combat Hostiles 8 | . . . . 8 . . . . . Parts Fried 8 | . . . . 8 . . . . . Impact Corruptions 15 | . . . . 13 . 2 . . . Robots Melted 1 | . . . . . . . 1 . . Combat Hostiles 1 | . . . . . . . 1 . . Parts Melted 9 | 1 . . 1 2 . 1 4 . . Heat Transferred 3177 | 518 481 185 222 1073 . 150 150 . 398 Parts Sabotaged 12 | . . . . 12 . . . . . Parts Stolen . | . . . . . . . . . . Parts Stripped . | . . . . . . . . . . Power Chain Reactions 1 | . . . . . . . . . 1 Alert | -11 -10 -9 -8 -8 -8 -7 -7 -7 -6 ------- Run | Yrd Mat Mat Mat Gar Mat Fac Low Dat Pro Maximum Alert Level 5 | . . . . 5 4 2 . . . Low Security (%) 18 | 100 100 100 100 6 . . . . . Level 1 4 | . . . . 6 . 5 . . . Level 2 16 | . . . . 7 . 94 . . . Level 3 6 | . . . . 11 . . . . . Level 4 28 | . . . . 26 100 . . . . Level 5 25 | . . . . 42 . . . . . High Security . | . . . . . . . . . . Max Security . | . . . . . . . . . . Peak Influence 2977 | 10 50 135 138 2977 1475 583 . . . Initial 1450 | . . . 44 53 1450 583 . . . Average 1135 | 1 17 57 82 1493 1367 465 . . . Influence Increases 4365 | 30 79 175 202 3074 243 227 30 . 305 Destroy 0b10 Robot/C 1600 | . 60 80 80 880 120 120 20 . 240 Destroy 0b10 Robot/NC 85 | 30 . . 15 . 25 10 . . 5 Destroy Leader 162 | . 10 20 26 30 26 30 10 . 10 Allied During Kill 55 | . . . . 35 . . . . 20 Successful Hack 67 | . 9 . 4 20 14 20 . . . Disable Machine 30 | . . . . 30 . . . . . Anti-Garrison Action 1750 | . . . . 1750 . . . . . Destroy Structure 166 | . . . 2 134 28 2 . . . Lose Combat Pursuer 450 | . . 75 75 195 30 45 . . 30 Influence Decreases 4365 | 30 79 70 225 179 1937 1096 444 . 305 Entered New Map 2471 | . . . 61 29 1527 700 154 . . Time Decay 1504 | 30 79 70 164 . 350 356 270 . 185 Lost Part 330 | . . . . 130 60 40 20 . 80 Lost Ally 60 | . . . . 20 . . . . 40 Squads Dispatched 7 | . . 2 1 . 1 2 . . 1 Investigation 3 | . . 2 . . . 1 . . . Extermination 1 | . . . . . . 1 . . . Reinforcement 1 | . . . 1 . . . . . . Assault 2 | . . . . . 1 . . . 1 Garrison . | . . . . . . . . . . Intercept . | . . . . . . . . . . Searches Triggered . | . . . . . . . . . . Construction Impeded . | . . . . . . . . . . Haulers Reinforced . | . . . . . . . . . . Active Scanning Responses . | . . . . . . . . . . Cargo Convoy Interrupts . | . . . . . . . . . . Stealth | -11 -10 -9 -8 -8 -8 -7 -7 -7 -6 --------- Run | Yrd Mat Mat Mat Gar Mat Fac Low Dat Pro Distress Signals 2 | . . . 1 . 1 . . . . Communications Jammed . | . . . . . . . . . . Distress Signals . | . . . . . . . . . . Times Spotted 134 | . 6 11 12 56 13 13 1 . 22 Peak Tracking Total 9 | . 3 5 6 8 5 6 1 . 9 Tactical Retreats 22 | . . 2 3 13 1 2 . . 1 Traps | -11 -10 -9 -8 -8 -8 -7 -7 -7 -6 ------- Run | Yrd Mat Mat Mat Gar Mat Fac Low Dat Pro Traps Triggered 11 | . . 1 . 7 3 . . . . Indirectly . | . . . . . . . . . . Trap Hack Attempts . | . . . . . . . . . . Triggered . | . . . . . . . . . . Disarmed . | . . . . . . . . . . Reprogrammed . | . . . . . . . . . . Reused . | . . . . . . . . . . Traps Extracted . | . . . . . . . . . . Installed . | . . . . . . . . . . Triggered . | . . . . . . . . . . Machines | -11 -10 -9 -8 -8 -8 -7 -7 -7 -6 ---------- Run | Yrd Mat Mat Mat Gar Mat Fac Low Dat Pro Machines Disabled 9 | . . . . 9 . . . . . Max in Single Turn 2 | . . . . 2 . . . . . Garrison Relay 5 | . . . . 5 . . . . . Phase Generator 1 | . . . . 1 . . . . . Machines Repaired . | . . . . . . . . . . Machines Dismantled . | . . . . . . . . . . Machines Sabotaged . | . . . . . . . . . . Overloaded Fab Kills . | . . . . . . . . . . Hacking | -11 -10 -9 -8 -8 -8 -7 -7 -7 -6 --------- Run | Yrd Mat Mat Mat Gar Mat Fac Low Dat Pro Machines Accessed 19 | . 3 3 2 4 1 2 1 3 . Terminals 12 | . 3 2 1 4 1 1 . . . Fabricators . | . . . . . . . . . . Repair Stations . | . . . . . . . . . . Recycling Units . | . . . . . . . . . . Scanalyzers 2 | . . 1 . . . 1 . . . Garrison Access 1 | . . . 1 . . . . . . Total Hacks 53 | . 3 8 2 7 2 5 1 25 . Successful 39 | . 3 2 1 2 1 4 1 25 . Failed 14 | . . 6 1 5 1 1 . . . Catastrophic 1 | . . 1 . . . . . . . Database Lockouts . | . . . . . . . . . . Manual 11 | . 3 4 1 . 2 1 . . . Terminals 21 | . 3 6 1 7 2 2 . . . Fabricators . | . . . . . . . . . . Repair Stations . | . . . . . . . . . . Recycling Units . | . . . . . . . . . . Scanalyzers 5 | . . 2 . . . 3 . . . Garrison Access 1 | . . . 1 . . . . . . Terminal Hacks 30 | . . . . 2 . 2 1 25 . Record 6 | . . . . . . . . 6 . Part Schematic 11 | . . . . . . . . 11 . Robot Schematic 5 | . . . . . . . . 5 . Prototype ID Bank 3 | . . . . . . . . 3 . Open Door 2 | . . . . 1 . . 1 . . Branch Access Points 1 | . . . . . . 1 . . . Emergency Access Points 1 | . . . . . . 1 . . . Patrol Navigation 1 | . . . . 1 . . . . . Fabricator Hacks . | . . . . . . . . . . Repair Station Hacks . | . . . . . . . . . . Recycling Unit Hacks . | . . . . . . . . . . Scanalyzer 4 | . . 2 . . . 2 . . . Retrieve Study 4 | . . 2 . . . 2 . . . Garrison Access Hacks 1 | . . . 1 . . . . . . Unlock Access 1 | . . . 1 . . . . . . Unauthorized Hacks 4 | . 3 . . . 1 . . . . Terminals 4 | . 3 . . . 1 . . . . Botnet 4 | . 3 . . . 1 . . . . Fabricators . | . . . . . . . . . . Repair Stations . | . . . . . . . . . . Recycling Units . | . . . . . . . . . . Scanalyzers . | . . . . . . . . . . Garrison Access . | . . . . . . . . . . Data Cores Recovered 1 | . . . . . . 1 . . . Used . | . . . . . . . . . . Hacking Detections 12 | . 2 3 2 2 1 2 . . . Full Trace Events 3 | . . 1 . 1 . 1 . . . Feedback Events . | . . . . . . . . . . Feedback Blocked . | . . . . . . . . . . Robot Schematics Acquired 5 | . . . . . . . . 5 . Robots Built . | . . . . . . . . . . Authchips . | . . . . . . . . . . Time . | . . . . . . . . . . Total Robot Build Rating . | . . . . . . . . . . Part Schematics Acquired 11 | . . . . . . . . 11 . Parts Built . | . . . . . . . . . . Authchips . | . . . . . . . . . . Time . | . . . . . . . . . . Total Part Build Rating . | . . . . . . . . . . Part Studies Acquired 4 | . . 2 . . . 2 . . . Parts Repaired . | . . . . . . . . . . Time . | . . . . . . . . . . Parts Recycled . | . . . . . . . . . . Recycled Matter . | . . . . . . . . . . Retrieved Matter . | . . . . . . . . . . Retrieved Components . | . . . . . . . . . . Parts Scanalyzed . | . . . . . . . . . . Part Schematics Acquired . | . . . . . . . . . . Parts Damaged . | . . . . . . . . . . Bothacking | -11 -10 -9 -8 -8 -8 -7 -7 -7 -6 ------------ Run | Yrd Mat Mat Mat Gar Mat Fac Low Dat Pro Used RIF Installer . | . . . . . . . . . . Robots Hacked 1 | . . . . 1 . . . . . Non-combat . | . . . . . . . . . . Combat 1 | . . . . 1 . . . . . Robot Hacks Applied 1 | . . . . 1 . . . . . parse_system 1 | . . . . 1 . . . . . Relay Couplers Released 18 | . . . . 18 . . . . . Machine Destruction 18 | . . . . 18 . . . . . Fabnet Peak Effective % . | . . . . . . . . . . Robots Rewired 4 | . . . . 2 . . . . 2 Allies Hacked . | . . . . . . . . . . Hacks Repelled . | . . . . . . . . . . Allies | -11 -10 -9 -8 -8 -8 -7 -7 -7 -6 -------- Run | Yrd Mat Mat Mat Gar Mat Fac Low Dat Pro Total Allies 5 | . . . . 2 . . . . 3 Largest Group 2 | . . . . 2 . . . . 2 Highest-Rated Group 96 | . . . . 59 . . . . 96 Highest-Rated Ally 96 | . . . . 39 . . . . 96 Initial Warlord ECA Mod 13 | . . . . . 13 12 12 12 11 Total Orders . | . . . . . . . . . . Ally Attacks 74 | . . . . 38 . . . . 36 Total Damage 1339 | . . . . 565 . . . . 774 Kills 11 | . . . . 6 . . . . 5 Allies Corrupted . | . . . . . . . . . . Allies Melted 1 | . . . . . . . . . 1 Intel | -11 -10 -9 -8 -8 -8 -7 -7 -7 -6 ------- Run | Yrd Mat Mat Mat Gar Mat Fac Low Dat Pro Active Infowar (turns) 1118 | 13 210 230 353 34 . 125 153 . . Structural 961 | . 66 230 353 34 . 125 153 . . Seismic 157 | 13 144 . . . . . . . . Robot Analysis Total . | . . . . . . . . . . Derelict Logs Recovered . | . . . . . . . . . . Drone Launches . | . . . . . . . . . . Drone Recoveries . | . . . . . . . . . . Exploration | -11 -10 -9 -8 -8 -8 -7 -7 -7 -6 ------------- Run | Yrd Mat Mat Mat Gar Mat Fac Low Dat Pro Turns Passed 8063 | 138 211 230 353 3816 798 809 657 179 872 Spaces Moved 2886 | 83 173 183 280 1074 199 327 271 79 217 Core 6 | 2 . . . 3 . . . . 1 Treads 978 | 2 . . . 73 82 327 271 79 144 Legs 603 | . . . . 414 117 . . . 72 Wheels 1299 | 79 173 183 280 584 . . . . . Hover . | . . . . . . . . . . Flight . | . . . . . . . . . . Fastest Speed 50 | 50 95 90 90 135 240 200 212 229 229 Average Speed 243 | 93 96 94 106 313 339 218 232 229 336 Slowest Speed 1650 | 160 110 100 135 1500 890 240 285 229 1650 Overloaded Moves . | . . . . . . . . . . Propulsion Burnouts . | . . . . . . . . . . Robots Hopped . | . . . . . . . . . . Potential Cave-ins . | . . . . . . . . . . Cave-ins Triggered . | . . . . . . . . . . Exploration Rate (%) 34 | 3 41 22 35 92 20 9 36 68 20 Regions Visited 9 Branch Regions 3 Pre-discovered Areas 2 | . . . . . . . 1 1 . Known Exits Taken 4 | . . . 1 . . 1 1 1 . Unknown Exits Taken 4 | 1 1 1 . . 1 . . . . Scrap Searched 2 | . . . . . . . 1 . 1 Spaces Dug 15 | . . . . 15 . . . . . Terrain Destroyed 228 | . . . . 177 32 . . . 19 Melee 15 | . . . . 15 . . . . . Projectile 3 | . . . . 1 . . . . 2 AOE 210 | . . . . 161 32 . . . 17 Terrain Rammed . | . . . . . . . . . . Walls Destroyed . | . . . . . . . . . . Machines Disabled . | . . . . . . . . . . Actions | -11 -10 -9 -8 -8 -8 -7 -7 -7 -6 --------- Run | Yrd Mat Mat Mat Gar Mat Fac Low Dat Pro Total 3423 | 111 193 213 316 1304 254 379 289 78 286 Wait 52 | . 1 7 7 16 5 5 3 . 8 Move 2876 | 82 172 182 279 1072 198 326 270 78 217 Hop . | . . . . . . . . . . Pick Up 53 | 4 2 1 12 7 6 10 9 . 2 Fast Attach 35 | 7 1 . 1 15 3 . 1 . 7 Attach 35 | . . 2 1 11 4 7 . . 10 Detach 2 | . 1 . . 1 . . . . . Swap 19 | 1 1 3 1 7 . . 2 . 4 Drop 15 | 1 2 3 4 1 . 4 . . . Fire 233 | 16 13 15 11 83 38 26 4 . 27 Melee 66 | . . . . 54 . 1 . . 11 Ram . | . . . . . . . . . . Kick . | . . . . . . . . . . Crush . | . . . . . . . . . . Escape Stasis 37 | . . . . 37 . . . . . Rewire . | . . . . . . . . . . Trap . | . . . . . . . . . . Miscellaneous . | . . . . . . . . . . Route ------- -11/Scrapyard -10/Materials (discovered 2 exits: *Mat / [*Min]) -9/Materials -8/Materials -8/Garrison (discovered 3 exits: *Mat x3) -8/Materials -7/Factory (discovered 3 exits: [*Fac] / *Low x2) -7/Lower Caves -7/Data Miner -6/Proximity Caves History --------- Turn | Location | Event 13 | -11/Scrapyard | Discovered new exit (range 16) 139 | -11/Scrapyard | Entered Materials 238 | -10/Materials | Discovered new exit (range 10) 268 | -10/Materials | Discovered new exit (range 16) 306 | -10/Materials | Build established: Mutant 350 | -10/Materials | Entered another Materials area 350 | -9/Materials | Evolved 2 slots: Propulsion x1, Utility x1 522 | -9/Materials | Discovered new exit (range 16) 580 | -9/Materials | Entered another Materials area 580 | -8/Materials | Evolved 2 slots: Weapon x2 891 | -8/Materials | Build established: Gunner 916 | -8/Materials | Identified exit to Garrison 933 | -8/Materials | Entered Garrison 1071 | -8/Garrison | Triggered checkpoint 1165 | -8/Garrison | Garrison Relay disabled 1393 | -8/Garrison | Phase Generator disabled 1396 | -8/Garrison | P-60 Hacker assimilated allied Q3-IB2(b) 1598 | -8/Garrison | Triggered checkpoint 1612 | -8/Garrison | Triggered checkpoint 1647 | -8/Garrison | Triggered checkpoint 1712 | -8/Garrison | Lost 3 parts (1p1n1w) 1834 | -8/Garrison | Discovered new exit (range 14) 2060 | -8/Garrison | Garrison Relay disabled 2191 | -8/Garrison | Triggered checkpoint 2203 | -8/Garrison | Garrison Relay disabled 2232 | -8/Garrison | Build established: Mutant 2371 | -8/Garrison | Discovered new exit (range 4) 2397 | -8/Garrison | Triggered checkpoint 2427 | -8/Garrison | Core integrity fell below 50% 2476 | -8/Garrison | Lost 6 parts (1p2n3w) 2732 | -8/Garrison | Garrison Relay disabled 3485 | -8/Garrison | Discovered new exit (range 13) 3674 | -8/Garrison | Build established: Scavenger-Tank 3904 | -8/Garrison | Triggered checkpoint 3957 | -8/Garrison | Garrison Relay disabled 4346 | -8/Garrison | Attempted to access garrison exit controls, blocked by remote lockdown 4749 | -8/Garrison | Entered Materials 5020 | -8/Materials | Lost 3 parts (1n1u1w) 5149 | -8/Materials | First assault squad dispatched 5293 | -8/Materials | Core integrity fell below 20% 5317 | -8/Materials | Lost 3 parts (2n1w) 5539 | -8/Materials | Discovered new exit (range 4) 5547 | -8/Materials | Entered Factory 5547 | -7/Factory | Evolved 2 slots: Propulsion x1, Utility x1 6005 | -7/Factory | Identified exit to Lower Caves 6195 | -7/Factory | Lost 3 parts (1n2w) 6305 | -7/Factory | Discovered new exit (range 14) 6356 | -7/Factory | Entered Lower Caves 6356 | -7/Lower Caves | Spotted B-75 Beast 6494 | -7/Lower Caves | Destroyed B-75 Beast 6498 | -7/Lower Caves | Met a Warlord Commander 6499 | -7/Lower Caves | Learned location of Warlord (-5) 6500 | -7/Lower Caves | Warlord Commander delivered Encrypted Comm Array 6508 | -7/Lower Caves | Found Encrypted Comm Array 6797 | -7/Lower Caves | Build established: Gunner 6961 | -7/Lower Caves | Encountered a Warlord checkpoint 6998 | -7/Lower Caves | A Derelict revealed a hidden shortcut to meet someone special 7011 | -7/Lower Caves | Identified exit to Data Miner 7013 | -7/Lower Caves | Entered Data Miner 7013 | -7/Data Miner | Discovered new exit (range 6) 7057 | -7/Data Miner | Met Data Miner 7103 | -7/Data Miner | Learned location of Section 7 (-2) 7103 | -7/Data Miner | Acquired the access code to Warlord's prototype stash 7142 | -7/Data Miner | Received God Mode back door access code from Data Miner 7190 | -7/Data Miner | Identified exit to Proximity Caves 7192 | -7/Data Miner | Entered Proximity Caves 7322 | -6/Proximity Caves | Attracted the attention of an 0b10 outpost 7411 | -6/Proximity Caves | Spotter reported a threat 7416 | -6/Proximity Caves | Lost 7 parts (1p3n3w) 7691 | -6/Proximity Caves | Core integrity fell below 50% 7717 | -6/Proximity Caves | Escorted by Enhanced Grunt 7726 | -6/Proximity Caves | Core integrity fell below 20% 7747 | -6/Proximity Caves | Lost 5 parts (1p4w) 7766 | -6/Proximity Caves | Spotter reported a threat 7778 | -6/Proximity Caves | Spotter reported a threat 8056 | -6/Proximity Caves | Spotter reported a threat 8064 | -6/Proximity Caves | Destroyed by G-67 Veteran with Plasma Rifle Last Messages --------------- 08046_ Encrypted Comm Array destroyed. 08046_ Hvy. Riot Gun destroyed. 08049_ Critical hit (Burn: +50). 08049_ Carbon-fiber Leg destroyed. 08051_ Overheating: Field Laser damaged (-20). 08051_ Overheating: Imp. Signal Interpreter damaged (-7). 08051_ Overheating: Huge Storage Unit damaged (-194). 08051_ Overheating: Lgt. Treads+ damaged (-32). 08052_ Hvy. Laser destroyed. 08054_ Overheating: Lgt. Treads+ damaged (-26). 08054_ Overheating: Huge Storage Unit damaged (-147). 08054_ N-01 Spotter is scanning... 08056_ N-01 Spotter sends a signal. 08056_ ALERT: Unidentified potential threat approaching Complex 0b10. 08061_ Lgt. Treads+ destroyed. 08064_ Carbon-fiber Leg destroyed. Map ----- +----------------------------------------------------+ | ?????????#???????????????????????????????????????? | | ????????# ???????????????????????????????????????? | | ?????### ????????????????????????????????????????? | | #???## ????????????????????????????????????????? | | #??## ????????????????????????????????????????? | | #?## ?????????????????????????????????????????? | | ### ????????% ???????????????????????????????? | | ?# #???##???# ???????????????????????????????? | | ## #### #####%#??????????????????????????????? | | % #####??????????????????????????? | | # #?* %% ??????????????????????????? | | ### ! ##?? % ? ????????????????????????? | | #### !% ##???# ##""????????????????????????? | | #?# ###????? ?#???????????????????????? | | ### ##???????#%! ? #???????????????????????? | | ## ###???????## "#?? #???????????????????????? | | ### #?????????#" #### ####????????????????????? | | ##?# ##???????## ####### ????????????? | | #??# ##??????# ???????????? | | ##?# ##??#### ????????????? | | #### ####"" #???????????????????? | | ## #########???????????????????? | | ### #??#######??????????????????? | | ### ###"#### #?## #### % ;#??????????? | | ### ##?###?## ### #???????????? | | ## #??????# ng @ #????????? | | ### ##??????## g #????????? | | ??# ###????????# g #####???????????? | | ??# ##??????????## ##???????????????? | | ?# #????????????# ## ##????????????????? | | ?# ##????????????## #?######?????????????????? | | ?#####??????????????#####????????????????????????? | | ?????????????????????????????????????????????????? | | ?????????????????????????????????????????????????? | | ?????????????????????????????????????????????????? | | ?????????????????????????????????????????????????? | | ?????????????????????????????????????????????????? | | ?????????????????????????????????????????????????? | | ?????????????????????????????????????????????????? | | ?????????????????????????????????????????????????? | | ?????????????????????????????????????????????????? | | ?????????????????????????????????????????????????? | | ?????????????????????????????????????????????????? | | ?????????????????????????????????????????????????? | | ?????????????????????????????????????????????????? | | ?????????????????????????????????????????????????? | | ?????????????????????????????????????????????????? | | ?????????????????????????????????????????????????? | | ?????????????????????????????????????????????????? | | ?????????????????????????????????????????????????? | +----------------------------------------------------+ Best States ------------- Heat Dissipation 61 Energy Generation 16 Energy Capacity 490 Matter Stores 300 Matter Capacity 300 Sight Range 16 Terrain Scan Density 10 Armor Coverage 600 Evasion (%) 44 Targeting Accuracy 5 Recoil Reduction 4 Offensive Hacking 10 Item Schematics ----------------- Combat Drone Bay | -7/Data Miner | Free Lgt. Regenerative Plating | -7/Data Miner | Free Cld. Aerolev Unit | -7/Data Miner | Free Gravity Neutralizer | -7/Data Miner | Free Antimatter Cannon | -7/Data Miner | Free Thunder Leg | -7/Data Miner | Free Imp. Focal Shield | -7/Data Miner | Free Hvy. Shock Bomb Launcher | -7/Data Miner | Free Imp. Hacking Suite | -7/Data Miner | Free Field Propulsion Drive | -7/Data Miner | Free Imp. Force Booster | -7/Data Miner | Free Robot Schematics ------------------ S-27 Virus | -7/Data Miner | Free R-10 Processor | -7/Data Miner | Free W-25 Informer | -7/Data Miner | Free B-60 Warrior | -7/Data Miner | Free L-41 Fighter | -7/Data Miner | Free Fabricated ------------ Nothing Repaired ---------- Nothing Studied --------- Arm. Wheel | -9/Materials | Hacked Wheel | -9/Materials | Hacked Lgt. Angular Momentum Engine | -7/Factory | Hacked Lgt. Treads | -7/Factory | Hacked Alien Tech Used ----------------- None Achievements -------------- I Like You, Cogmind Challenges ------------ None Game ------ Seed ThermalGammaShifter Manual? 0 Play Time 00:33:53 Cumulative 165.4 hours Start 2026.08.19 @ 14:19:04 End 2026.08.19 @ 15:11:06 Sessions 1 Manual Loads 0 Difficulty Rogue Special Mode None Game No. 329 Rogue 329 Adventurer 0 Explorer 0 Win Type - Total 2 Types 2/0/0/0/0/0/0/0/0/0 Lore% 57 Gallery% 58 Achievement% 46 Wizard Run 0 Options --------- Layout 2 ASCII 0 Keyboard 1 Movement Arrows Keybinds 0 Fullscreen 1 Font 24/Smallcaps Map View 50x44 Zoom Use 0% Tactical HUD 1 Map Filters NONE Filters NONE Steam 1 RUN: 6d1911b2-aad4-42d3-86e8-f9a3a4a17c4c